bitfinex/quotes_SOLUSD_20240622
["timestamp","ask_amount","ask_price","bid_price","bid_amount"]
[1719050757745,33.9359,134.67,134.62,13.938]
[1719050758152,27.4259,134.67,134.62,13.938]
[1719050758442,26.51,134.67,134.63,7.4277]
[1719050758635,20.0,134.67,134.64,7.4271]
[1719050758861,6.51,134.68,134.64,7.4271]
[1719050759336,13.935,134.68,134.63,13.9375]
[1719050760054,13.935,134.68,134.61,16.0883]
[1719050760055,7.4255,134.67,134.62,8.44883593]
[1719050760344,13.9355,134.67,134.62,13.9382]
[1719050760917,6.51,134.67,134.63,7.4273]
[1719050761135,13.9351,134.68,134.63,13.9373]
[1719050762052,13.9351,134.68,134.63,7.4273]
[1719050762344,13.9351,134.68,134.63,13.9373]
[1719050763052,7.4256,134.67,134.63,6.51]
[1719050763347,7.4256,134.67,134.61,16.0883]
[1719050763348,13.9365,134.66,134.61,22.5983]
[1719050763717,13.9365,134.66,134.61,16.0883]
[1719050763923,13.9365,134.66,134.61,30.0271]
[1719050764117,13.9364,134.66,134.61,16.0883]
[1719050764341,13.9364,134.66,134.61,6.51]
[1719050764726,13.9364,134.66,134.61,13.9388]
[1719050765153,7.4264,134.66,134.61,7.4288]
[1719050765326,7.4264,134.66,134.61,13.9388]
[1719050766026,13.9358,134.67,134.61,13.9388]
[1719050766435,7.4262,134.66,134.61,13.9388]
[1719050766649,7.4262,134.66,134.61,7.4288]
[1719050766846,7.4262,134.66,134.61,13.9388]
[1719050767022,13.9362,134.66,134.61,7.4288]
[1719050767447,6.51,134.65,134.61,7.4288]
[1719050768739,13.9366,134.65,134.6,7.4291]
[1719050769038,6.51,134.64,134.58,22.7769]
[1719050769229,13.9372,134.64,134.59,7.4296]
[1719050770740,6.51,134.63,134.59,7.4296]
[1719050771949,6.51,134.62,134.58,7.4303]
[1719050772446,7.4278,134.63,134.57,7.4309]
[1719050772447,6.51,134.61,134.57,7.4309]
[1719050773139,6.51,134.61,134.58,7.4304]
[1719050773343,6.51,134.62,134.58,7.4304]
[1719050773847,13.9386,134.62,134.56,13.9412]
[1719050774064,6.51,134.61,134.56,7.4312]
[1719050774350,6.51,134.6,134.56,7.4312]
[1719050774531,6.51,134.59,134.56,7.4312]
[1719050774726,13.9404,134.59,134.51,15.7994]
[1719050775056,16.0312,134.63,134.53,6.51]
[1719050775237,6.51,134.59,134.54,6.51]
[1719050775441,16.0312,134.63,134.54,6.51]
[1719050775634,6.51,134.6,134.54,6.51]
[1719050775839,6.51,134.6,134.56,7.4315]
[1719050776741,6.51,134.6,134.57,7.431]
[1719050777131,6.51,134.61,134.57,7.431]
[1719050777332,20.0,134.6,134.57,7.431]
[1719050777541,20.0,134.6,134.55,6.51]
[1719050777746,6.51,134.61,134.56,7.4314]
[1719050779051,6.51,134.61,134.57,7.431]
[1719050779255,6.51,134.6,134.55,13.9419]
[1719050779442,6.51,134.6,134.55,7.4319]
[1719050780339,13.9394,134.6,134.55,7.4319]
[1719050780748,6.51,134.59,134.55,7.4319]
[1719050780932,13.9394,134.6,134.55,7.4319]
[1719050782550,6.51,134.6,134.55,7.4319]
[1719050782734,6.51,134.6,134.56,7.4315]
[1719050783231,7.429,134.61,134.56,7.4315]
[1719050783232,13.939,134.61,134.56,7.4315]
[1719050783456,20.0,134.6,134.56,7.4315]
[1719050785346,20.0,134.6,134.55,13.9419]
[1719050786657,20.0,134.6,134.56,0.539418]
[1719050787158,27.4294,134.6,134.55,14.48203192]
[1719050787359,27.4294,134.6,134.55,13.9419]
[1719050787542,27.4294,134.6,134.56,0.69912559]
[1719050788071,27.4294,134.6,134.55,13.9419]
[1719050790357,27.4294,134.6,134.55,6.51]
[1719050790572,33.9394,134.6,134.54,13.9425]
[1719050791158,7.4299,134.59,134.54,13.9425]
[1719050792060,33.9395,134.6,134.55,7.4321]
[1719050792455,20.0,134.6,134.56,7.4315]
[1719050792767,26.51,134.6,134.56,7.4315]
[1719050794255,20.0,134.6,134.56,7.4315]
[1719050794841,20.0,134.6,134.55,6.51]
[1719050794842,6.51,134.61,134.55,6.51]
[1719050795042,16.0312,134.63,134.59,7.4298]
[1719050795447,16.0312,134.63,134.58,13.9403]
[1719050795448,23.459,134.63,134.58,13.9403]
[1719050796168,23.459,134.63,134.58,7.4303]
[1719050796350,29.969,134.63,134.58,13.9403]
[1719050797571,29.969,134.63,134.58,7.4303]
[1719050798266,13.9378,134.63,134.58,7.4303]
[1719050798565,16.2105,134.7,134.65,7.4263]
[1719050798765,16.2105,134.7,134.65,13.9363]
[1719050798967,23.6344,134.7,134.65,6.51]
[1719050799149,30.1444,134.7,134.65,6.51]
[1719050799351,23.6344,134.7,134.65,6.51]
[1719050799874,7.4245,134.69,134.65,6.51]
[1719050800251,7.4245,134.69,134.63,7.4275]
[1719050800456,7.4245,134.69,134.64,6.51]
[1719050800772,13.9352,134.68,134.63,6.51]
[1719050800958,7.4256,134.67,134.62,13.9381]
[1719050801557,6.51,134.68,134.59,22.7663]
[1719050801873,7.4256,134.67,134.62,6.51]
[1719050802051,13.935,134.68,134.63,7.4277]
[1719050802252,16.2105,134.7,134.64,7.4271]
[1719050802469,6.51,134.68,134.64,7.4271]
[1719050802667,33.9349,134.69,134.63,13.9377]
[1719050803052,13.9351,134.68,134.63,13.9377]
[1719050803367,20.0,134.69,134.64,13.9371]
[1719050803569,20.0,134.69,134.65,7.4265]
[1719050804161,20.0,134.69,134.61,25.0808]
[1719050804162,20.0,134.69,134.67,7.4251]
[1719050804361,16.2105,134.74,134.67,7.4251]
[1719050804362,6.51,134.73,134.67,13.9351]
[1719050804560,26.51,134.73,134.67,13.9351]
[1719050805052,6.51,134.72,134.67,13.9351]
[1719050805249,13.9331,134.72,134.67,13.9351]
[1719050805489,20.0,134.71,134.67,13.9351]
[1719050805778,20.0,134.71,134.67,6.51]
[1719050806375,27.4233,134.71,134.67,6.51]
[1719050807176,27.4233,134.71,134.66,13.936]
[1719050807656,33.9333,134.71,134.65,13.9365]
[1719050807856,33.9333,134.71,134.66,7.426]
[1719050809155,33.9333,134.71,134.65,13.9364]
[1719050809355,33.9333,134.71,134.66,7.426]
[1719050809588,7.424,134.7,134.64,15.8167]
[1719050809885,7.4245,134.69,134.64,29.7536]
[1719050810555,13.934,134.7,134.64,29.7536]
[1719050811399,33.9345,134.69,134.64,7.4269]
[1719050811565,6.51,134.68,134.64,7.4269]
[1719050811955,6.51,134.68,134.63,7.4275]
[1719050812161,27.4245,134.69,134.62,7.4283]
[1719050812162,26.51,134.67,134.62,7.4283]
[1719050812368,6.51,134.67,134.63,7.4276]
[1719050813662,13.9351,134.68,134.63,7.4276]
[1719050813861,20.0,134.67,134.63,7.4276]
[1719050815860,20.0,134.67,134.62,13.9381]
[1719050818897,27.4255,134.67,134.62,13.9381]
[1719050819461,33.9355,134.67,134.61,7.4286]
[1719050819677,33.9355,134.67,134.61,13.9386]
[1719050820684,33.9355,134.67,134.62,7.4282]
[1719050822369,26.51,134.67,134.62,7.4282]
[1719050822578,26.51,134.67,134.63,7.4276]
[1719050823084,20.0,134.67,134.63,7.4276]
[1719050823286,20.0,134.67,134.64,7.427]
[1719050823471,20.0,134.68,134.64,13.937]
[1719050825084,20.0,134.68,134.65,7.4265]
[1719050825593,20.0,134.69,134.65,13.9365]
[1719050827088,7.4235,134.71,134.66,13.9359]
[1719050827393,7.4235,134.71,134.67,6.51]
[1719050828684,7.4235,134.71,134.66,13.9359]
[1719050830790,13.7146,134.74,134.64,6.563]
[1719050830989,20.0,134.73,134.67,6.51]
[1719050831295,26.51,134.73,134.68,6.51]
[1719050831471,20.0,134.73,134.68,13.9345]
[1719050832491,20.0,134.73,134.69,6.51]
[1719050832871,27.4224,134.73,134.69,6.51]
[1719050833072,23.9322,134.75,134.7,7.4237]
[1719050833278,20.0,134.74,134.71,7.4229]
[1719050833493,20.0,134.74,134.7,13.9337]
[1719050834192,20.0,134.74,134.7,6.51]
[1719050834371,20.0,134.74,134.7,13.9337]
[1719050834787,20.0,134.74,134.71,6.51]
[1719050834985,7.4213,134.75,134.71,6.51]
[1719050836071,7.4206,134.76,134.71,13.9331]
[1719050836391,13.9306,134.76,134.71,13.9331]
[1719050836579,7.4212,134.75,134.7,7.4238]
[1719050836782,13.9313,134.75,134.69,13.9339]
[1719050837497,6.51,134.74,134.69,13.9339]
[1719050838308,6.51,134.74,134.7,7.4238]
[1719050842504,6.51,134.75,134.7,7.4238]
[1719050842697,6.51,134.75,134.71,7.4232]
[1719050845091,7.4208,134.76,134.71,7.4232]
[1719050845295,20.0,134.75,134.71,7.4232]
[1719050845705,20.0,134.75,134.72,7.4228]
[1719050845889,26.51,134.76,134.71,7.4231]
[1719050846783,33.9306,134.76,134.71,7.4231]
[1719050847197,6.51,134.75,134.71,7.4231]
[1719050848096,13.9311,134.75,134.7,7.4237]
[1719050848296,13.9329,134.72,134.67,22.5638]
[1719050848687,20.0,134.71,134.67,7.4255]
[1719050848891,20.0,134.71,134.68,7.4248]
[1719050850800,26.51,134.72,134.68,7.4248]
[1719050852805,20.0,134.72,134.69,7.4242]
[1719050853689,20.0,134.72,134.68,13.9348]
[1719050855611,20.0,134.72,134.68,7.4248]
[1719050856208,33.9328,134.72,134.67,7.4254]
[1719050857812,26.51,134.72,134.68,7.4248]
[1719050858124,20.0,134.72,134.68,7.4248]
[1719050858306,20.0,134.72,134.68,13.9348]
[1719050859516,6.51,134.76,134.7,6.51]
[1719050859810,20.0,134.75,134.7,6.51]
[1719050860018,26.51,134.75,134.69,6.51]
[1719050860215,33.9314,134.75,134.69,6.51]
[1719050860714,33.9314,134.75,134.69,13.9339]
[1719050861116,33.9314,134.75,134.7,7.4238]
[1719050861915,26.51,134.75,134.7,7.4238]
[1719050862920,26.51,134.75,134.71,7.4232]
[1719050863722,20.0,134.75,134.72,7.4226]
[1719050864506,20.0,134.75,134.71,7.4231]
[1719050865209,20.0,134.75,134.72,7.4226]
[1719050865409,20.0,134.76,134.72,7.4226]
[1719050865813,20.0,134.76,134.73,7.4221]
[1719050866319,20.0,134.76,134.72,13.9326]
[1719050866515,7.4206,134.76,134.71,13.9331]
[1719050866825,13.9306,134.76,134.71,7.4231]
[1719050868023,6.51,134.76,134.72,7.4227]
[1719050868521,27.4202,134.77,134.72,7.4227]
[1719050868709,6.51,134.76,134.72,7.4227]
[1719050869612,27.4202,134.77,134.72,7.4227]
[1719050869813,6.51,134.76,134.72,7.4227]
[1719050870718,27.4202,134.77,134.72,7.4227]
[1719050870919,33.9302,134.77,134.72,7.4227]
[1719050871122,26.51,134.77,134.72,7.4227]
[1719050872420,33.9301,134.77,134.72,7.4227]
[1719050876749,6.51,134.76,134.69,15.0799]
[1719050877035,33.9313,134.75,134.69,29.014]
[1719050877412,7.4217,134.74,134.69,29.014]
[1719050877614,33.9313,134.75,134.69,29.014]
[1719050877911,33.9313,134.75,134.7,7.4237]
[1719050878823,33.9313,134.75,134.69,29.0141]
[1719050879322,7.4218,134.74,134.69,29.0141]
[1719050879626,13.9318,134.74,134.69,22.5041]
[1719050879926,20.0,134.73,134.69,22.5041]
[1719050881433,20.0,134.73,134.69,15.0799]
[1719050881726,20.0,134.73,134.68,7.4248]
[1719050881915,20.0,134.73,134.7,7.4237]
[1719050882118,6.51,134.74,134.7,7.4237]
[1719050882317,20.0,134.73,134.69,6.51]
[1719050882522,20.0,134.73,134.7,6.51]
[1719050882913,20.0,134.75,134.71,7.4231]
[1719050883103,6.51,134.76,134.71,7.4231]
[1719050883303,20.0,134.75,134.71,7.4231]
[1719050883726,20.0,134.75,134.7,13.9337]
[1719050884230,27.4211,134.75,134.7,13.9337]
[1719050884933,27.4211,134.75,134.7,6.51]
[1719050885141,7.4217,134.74,134.69,7.4242]
[1719050885435,20.0,134.73,134.7,6.51]
[1719050886830,20.0,134.74,134.7,6.51]
[1719050887131,7.4206,134.76,134.71,6.51]
[1719050887337,7.4206,134.76,134.71,13.9332]
[1719050888029,13.9297,134.78,134.72,13.9327]
[1719050888228,7.4197,134.78,134.72,13.9327]
[1719050888414,7.4197,134.78,134.73,13.9321]
[1719050888732,7.4201,134.77,134.73,6.51]
[1719050888938,7.4201,134.77,134.72,13.9326]
[1719050890431,13.9301,134.77,134.72,13.9326]
[1719050890652,13.9301,134.77,134.72,7.4226]
[1719050891341,7.4197,134.78,134.72,13.9326]
[1719050891516,20.0,134.77,134.72,13.9326]
[1719050891714,20.0,134.77,134.73,7.4221]
[1719050892135,33.9295,134.78,134.73,7.4221]
[1719050892441,27.4195,134.78,134.73,7.4221]
[1719050892630,33.9295,134.78,134.73,7.4221]
[1719050893131,27.4195,134.78,134.73,7.4221]
[1719050893333,33.9295,134.78,134.73,7.4221]
[1719050894017,26.51,134.78,134.74,7.4216]
[1719050894222,26.51,134.78,134.73,7.422]
[1719050894745,20.0,134.78,134.73,7.422]
[1719050895046,13.9304,134.77,134.72,7.4227]
[1719050896258,7.4207,134.76,134.71,13.9331]
[1719050896540,13.9307,134.76,134.71,13.9331]
[1719050897844,7.4201,134.77,134.71,13.9331]
[1719050898047,6.51,134.76,134.71,13.9331]
[1719050898435,13.9301,134.77,134.72,7.4226]
[1719050898635,13.9301,134.77,134.71,13.9331]
[1719050899127,13.9302,134.77,134.71,7.4231]
[1719050899359,7.4202,134.77,134.72,7.4227]
[1719050899554,13.9302,134.77,134.72,7.4227]
[1719050899720,13.9302,134.77,134.71,7.4231]
[1719050899922,6.51,134.77,134.7,23.7024]
[1719050900153,6.51,134.74,134.68,7.4247]
[1719050900468,13.9318,134.74,134.69,7.4242]
[1719050900761,13.9318,134.74,134.69,13.9342]
[1719050901127,6.51,134.74,134.7,7.4237]
[1719050901623,13.9312,134.75,134.69,6.51]
[1719050901944,20.0,134.74,134.69,6.51]
[1719050902241,20.0,134.74,134.7,7.4233]
[1719050907035,6.3598,134.78,134.69,18.5598]
[1719050907231,33.9302,134.77,134.71,13.9328]
[1719050907844,6.51,134.76,134.71,13.9328]
[1719050908350,6.51,134.76,134.72,7.4226]
[1719050909747,6.51,134.76,134.73,7.4221]
[1719050909951,26.51,134.77,134.73,7.4221]
[1719050910361,33.9301,134.77,134.72,7.4227]
[1719050910656,33.9301,134.77,134.68,6.51]
[1719050910657,6.51,134.74,134.68,6.51]
[1719050910859,20.0,134.73,134.68,6.51]
[1719050911378,26.51,134.73,134.67,47.1665]
[1719050911736,26.51,134.73,134.69,7.4242]
[1719050917561,13.9343,134.7,134.62,33.685]
[1719050917774,6.51,134.68,134.62,15.1143]
[1719050917987,6.51,134.69,134.64,7.4271]
[1719050918150,20.0,134.68,134.65,7.4263]
[1719050918481,20.0,134.68,134.64,7.427]
[1719050918651,20.0,134.68,134.64,13.937]
[1719050919755,20.0,134.68,134.64,7.427]
[1719050921499,20.0,134.68,134.65,7.4264]
[1719050927980,20.0,134.69,134.65,7.4264]
[1719050929276,7.4235,134.71,134.66,7.4259]
[1719050929454,30.0307,134.72,134.66,13.9359]
[1719050929662,27.4234,134.71,134.66,13.9359]
[1719050929964,20.0,134.71,134.67,7.4253]
[1719050930369,20.0,134.71,134.67,8.33744677]
[1719050930572,20.0,134.71,134.68,0.91207904]
[1719050931465,27.4233,134.71,134.68,0.91207904]
[1719050932179,27.4233,134.71,134.68,2.39416828]
[1719050932679,20.0,134.71,134.68,2.39416828]
[1719050932862,7.4224,134.73,134.67,13.9355]
[1719050933061,27.4229,134.72,134.68,6.51]
[1719050933777,27.4229,134.72,134.67,7.4253]
[1719050933984,27.4229,134.72,134.67,13.9353]
[1719050934180,33.9329,134.72,134.67,13.9353]
[1719050934372,33.9329,134.72,134.67,7.4253]
[1719050934572,7.4235,134.71,134.66,29.5194]
[1719050934788,13.9335,134.71,134.66,29.5194]
[1719050935383,13.9335,134.71,134.66,22.8394]
[1719050938575,6.51,134.71,134.67,7.4254]
[1719050941077,33.9329,134.72,134.67,7.4254]
[1719050941492,33.9329,134.72,134.66,29.3493]
[1719050941791,7.4234,134.71,134.66,29.3493]
[1719050942893,13.9334,134.71,134.66,22.8393]
[1719050946001,6.51,134.71,134.66,22.8393]
[1719050947803,7.4242,134.7,134.62,21.5854]
[1719050948095,6.51,134.69,134.64,7.4268]
[1719050948284,6.51,134.69,134.65,7.4266]
[1719050950274,6.51,134.68,134.64,7.4271]
[1719050950478,6.51,134.67,134.64,7.4271]
[1719050952602,6.51,134.68,134.64,7.4271]
[1719050953490,7.4245,134.69,134.64,7.4271]
[1719050953791,26.51,134.68,134.64,7.4271]
[1719050955684,20.0,134.68,134.66,7.426]
[1719050956010,20.0,134.7,134.66,13.936]
[1719050956582,20.0,134.7,134.66,6.51]
[1719050956894,26.51,134.72,134.67,7.4253]
[1719050957387,20.0,134.72,134.67,7.4253]
[1719050957601,20.0,134.72,134.68,7.4249]
[1719050958100,26.51,134.72,134.68,7.4249]
[1719050958488,20.0,134.72,134.68,7.4249]
[1719050959398,24.0819,134.75,134.68,6.51]
[1719050959601,26.51,134.74,134.69,7.4242]
[1719050959912,33.9319,134.74,134.69,7.4242]
[1719050960295,27.4219,134.74,134.69,7.4242]
[1719050960481,33.9319,134.74,134.69,7.4242]
[1719050961091,13.9324,134.73,134.68,7.4249]
[1719050961531,13.9328,134.72,134.67,14.2753]
[1719050961706,13.9328,134.72,134.67,7.5953]
[1719050961907,20.0,134.71,134.66,15.0715]
[1719050962098,7.4235,134.71,134.66,29.0074]
[1719050962292,7.4229,134.72,134.66,29.0074]
[1719050962493,38.5545,134.74,134.67,7.4255]
[1719050962494,20.0,134.71,134.67,7.4255]
[1719050962798,20.0,134.71,134.67,13.9353]
[1719050964511,20.0,134.71,134.66,22.4974]
[1719050964685,20.0,134.71,134.66,29.0074]
[1719050966115,26.51,134.71,134.66,29.0074]
[1719050966701,26.51,134.71,134.67,7.4254]
[1719050967600,20.0,134.71,134.67,7.4254]
[1719050971611,33.9334,134.71,134.66,15.0715]
[1719050971913,33.9334,134.71,134.65,14.2763]
[1719050972515,33.9334,134.71,134.66,7.426]
[1719050973716,13.9341,134.7,134.65,7.7665]
[1719050974018,6.51,134.7,134.65,6.85]
[1719050974598,6.51,134.7,134.66,7.4257]
[1719050975714,13.9342,134.7,134.65,7.4265]
[1719050975919,6.51,134.69,134.65,7.4265]
[1719050977102,7.4242,134.7,134.65,7.4265]
[1719050977417,13.9342,134.7,134.65,7.4265]
[1719050983701,49.6128,134.71,134.66,7.426]
[1719050983900,56.1228,134.71,134.66,7.426]
[1719050984313,6.51,134.7,134.66,7.426]
[1719050984714,56.1228,134.71,134.66,7.426]
[1719050984922,13.9342,134.7,134.65,7.4264]
[1719050986302,6.51,134.7,134.66,7.426]
[1719050986712,49.6129,134.71,134.66,7.426]
[1719050986922,6.51,134.7,134.66,7.426]
[1719050987107,26.51,134.71,134.67,7.4255]
[1719050987827,33.9333,134.71,134.66,7.4258]
[1719050988300,6.51,134.69,134.66,7.4258]
[1719050988504,6.51,134.69,134.65,7.4264]
[1719050989510,26.51,134.71,134.68,7.4246]
[1719050989721,26.51,134.71,134.64,6.85]
[1719050989722,6.51,134.7,134.64,6.85]
[1719050989921,6.51,134.69,134.65,7.4265]
[1719050990228,13.9345,134.69,134.64,7.4269]
[1719050991408,6.51,134.69,134.64,7.4269]
[1719050993223,6.51,134.69,134.65,7.4264]
[1719050993616,7.424,134.7,134.65,7.4264]
[1719050993813,26.51,134.69,134.65,7.4264]
[1719050998812,20.0,134.69,134.66,7.4257]
[1719050999014,6.51,134.69,134.66,7.4257]
[1719051001137,20.0,134.7,134.67,7.4253]
[1719051001324,20.0,134.7,134.64,18.5679]
[1719051001325,26.51,134.71,134.68,7.4249]
[1719051001721,26.51,134.71,134.67,7.4253]
[1719051006025,6.51,134.7,134.67,7.4253]
[1719051006228,6.51,134.7,134.66,7.4258]
[1719051007644,27.4233,134.71,134.66,7.4258]
[1719051007842,6.51,134.7,134.66,7.4258]
[1719051009538,13.9339,134.7,134.65,7.4264]
[1719051009741,6.51,134.69,134.65,7.4264]
[1719051010342,13.9339,134.7,134.65,7.4264]
[1719051011924,6.51,134.69,134.65,7.4264]
[1719051012526,6.51,134.68,134.64,7.4271]
[1719051012737,6.51,134.67,134.6,15.9921]
[1719051013038,22.3681,134.7,134.61,7.4288]
[1719051013039,33.9362,134.66,134.61,7.4288]
[1719051013541,6.51,134.65,134.61,7.4288]
[1719051013742,20.0,134.66,134.62,7.4281]
[1719051013947,6.51,134.65,134.62,7.4281]
[1719051014643,6.51,134.65,134.61,7.4286]
[1719051014822,6.51,134.65,134.62,7.4282]
[1719051015644,20.0,134.66,134.62,7.4282]
[1719051015843,6.51,134.65,134.62,7.4282]
[1719051016324,20.0,134.66,134.62,7.4282]
[1719051016525,6.51,134.65,134.62,7.4282]
[1719051018147,6.51,134.65,134.56,60.4632]
[1719051018148,22.3681,134.65,134.56,41.8846]
[1719051018333,6.51,134.63,134.59,7.4298]
[1719051018746,6.51,134.63,134.6,7.4293]
[1719051019743,6.51,134.63,134.59,7.4297]
[1719051021944,6.51,134.61,134.57,7.4306]
[1719051022129,20.0,134.62,134.57,7.4306]
[1719051022331,6.51,134.61,134.57,7.4306]
[1719051022532,6.51,134.61,134.53,41.8889]
[1719051022846,20.0,134.6,134.56,7.4311]
[1719051023252,20.0,134.6,134.55,6.51]
[1719051023253,20.0,134.6,134.57,7.4309]
[1719051024134,26.51,134.6,134.56,7.4314]
[1719051025636,20.0,134.6,134.56,7.4314]
[1719051025835,26.51,134.6,134.56,7.4314]
[1719051026234,20.0,134.6,134.56,7.4314]
[1719051026447,26.51,134.6,134.56,7.4314]
[1719051026753,26.51,134.6,134.55,7.432]
[1719051028540,20.0,134.6,134.55,7.432]
[1719051028929,26.51,134.6,134.55,7.432]
[1719051029859,26.51,134.6,134.56,7.4312]
[1719051030161,20.0,134.6,134.57,6.51]
[1719051030337,20.0,134.61,134.57,6.51]
[1719051030544,20.0,134.61,134.58,7.4303]
[1719051030849,20.0,134.61,134.57,7.4309]
[1719051031039,26.51,134.61,134.56,13.9414]
[1719051031236,26.51,134.61,134.57,7.4309]
[1719051031553,20.0,134.61,134.57,7.4309]
[1719051032549,33.9383,134.62,134.57,13.9409]
[1719051032753,33.9383,134.62,134.57,7.4309]
[1719051032929,33.9383,134.62,134.57,13.9409]
[1719051033126,33.9383,134.62,134.56,7.4315]
[1719051033338,33.9383,134.62,134.57,6.51]
[1719051034242,33.9383,134.62,134.57,13.941]
[1719051034441,33.9383,134.62,134.57,6.51]
[1719051034740,33.9383,134.62,134.56,13.9414]
[1719051034942,33.9383,134.62,134.57,7.431]
[1719051036149,33.9383,134.62,134.56,13.9414]
[1719051036362,7.4295,134.6,134.55,13.9419]
[1719051037136,13.9395,134.6,134.55,7.4319]
[1719051037447,13.9395,134.6,134.55,6.51]
[1719051037646,13.9395,134.6,134.54,13.9425]
[1719051037953,7.4299,134.59,134.54,13.9425]
[1719051038856,6.51,134.58,134.54,7.4325]
[1719051039047,7.4299,134.59,134.54,7.4325]
[1719051039250,6.51,134.58,134.54,7.4325]
[1719051041444,6.51,134.58,134.53,7.433]
[1719051041445,13.9405,134.58,134.53,7.433]
[1719051041652,6.51,134.57,134.53,7.433]
[1719051042159,6.51,134.57,134.52,7.4336]
[1719051043061,6.51,134.57,134.53,7.4331]
[1719051045666,7.4305,134.58,134.53,7.4331]
[1719051045969,20.0,134.57,134.53,7.4331]
[1719051046581,20.0,134.57,134.53,13.9431]
[1719051049676,20.0,134.57,134.54,13.9426]
[1719051049972,20.0,134.58,134.54,13.9426]
[1719051050359,20.0,134.58,134.55,7.4321]
[1719051050564,20.0,134.59,134.55,13.9421]
[1719051052557,15.1406,134.6,134.56,13.9414]
[1719051052877,7.429,134.61,134.56,6.51]
[1719051053176,20.0,134.6,134.56,6.51]
[1719051053879,27.4295,134.6,134.56,6.51]
[1719051054669,27.4295,134.6,134.55,13.9419]
[1719051056866,20.0,134.6,134.55,13.9419]
[1719051057876,27.4294,134.6,134.55,13.9419]
[1719051058684,33.9394,134.6,134.55,7.4319]
[1719051060678,26.51,134.6,134.55,7.4319]
[1719051061476,20.0,134.6,134.56,7.4315]
[1719051063787,20.0,134.6,134.55,6.51]
[1719051063788,20.0,134.6,134.55,13.9419]
[1719051064284,33.9395,134.6,134.55,7.4319]
[1719051064484,33.9395,134.6,134.55,13.9419]
[1719051064873,27.4295,134.6,134.55,13.9419]
[1719051065067,33.9395,134.6,134.55,13.9419]
[1719051067175,26.51,134.6,134.55,13.9419]
[1719051067770,20.0,134.6,134.55,13.9419]
[1719051070077,27.4294,134.6,134.55,13.9419]
[1719051073388,33.9394,134.6,134.55,7.4319]
[1719051073894,6.51,134.58,134.54,7.4324]
[1719051074076,6.51,134.58,134.53,7.433]
[1719051074268,6.51,134.58,134.53,13.943]
[1719051075896,6.51,134.58,134.54,7.4327]
[1719051076803,6.51,134.58,134.53,7.4331]
[1719051077005,6.51,134.58,134.53,13.9431]
[1719051077476,6.51,134.58,134.53,7.4331]
[1719051078031,6.51,134.58,134.54,7.4327]
[1719051079428,6.51,134.58,134.53,13.943]
[1719051080921,13.9405,134.58,134.53,13.943]
[1719051083416,13.9405,134.58,134.53,7.433]